[Event "Is Bankasi Online Satranc Turn 17-18 YAS"]
[Site "T#646243Mustafa Kemal"]
[Date "2020.05.22"]
[Round "3"]
[White "Ataberkturkmen48"]
[Black "Umuterdemgundu70"]
[Result "0-1"]
[WhiteElo "1620"]
[BlackElo "1620"]
[Annotator "NA RC"]
[PlyCount "82"]
[EventDate "2020.05.22"]
[EventType "swiss (blitz)"]
[TimeControl "180+2"]

1. e4 {[%emt 0:00:04]} Na6 {[%emt 0:00:04]} 2. d4 {[%emt 0:00:03]} c6 {[%emt 0:00:04]} 3. c3 {[%emt 0:00:03]} Nc7 {[%emt 0:00:03]} 4. Bd3 {[%emt 0:00:01]} d5 {[%emt 0:00:04]} 5. e5 {[%emt 0:00:02]} g6 {[%emt 0:00:01]} 6. f4 {[%emt 0:00:01]} Bg7 {[%emt 0:00:11]} 7. Nf3 {[%emt 0:00:02]} Bg4 {[%emt 0:00:06]} 8. Nbd2 {[%emt 0:00:05]} Nh6 {[%emt 0:00:19]} 9. Nf1 {[%emt 0:00:02]} O-O {[%emt 0:00:35]} 10. Ne3 {[%emt 0:00:10]} Bxf3 {[%emt 0:00:02]} 11. Qxf3 {[%emt 0:00:00]} f6 {[%emt 0:00:00]} 12. Qe2 {[%emt 0:00:10]} fxe5 {[%emt 0:00:02]} 13. fxe5 {[%emt 0:00:00]} Ne6 {[%emt 0:00:05]} 14. g3 {[%emt 0:01:22]} c5 {[%emt 0:00:04]} 15. Nc2 {[%emt 0:00:15]} c4 {[%emt 0:00:03]} 16. Bxc4 {[%emt 0:00:04]} dxc4 {[%emt 0:00:02]} 17. Qxc4 {[%emt 0:00:00]} Qc8 {[%emt 0:00:04]} 18. Qb3 {[%emt 0:00:12]} Kh8 {[%emt 0:00:03]} 19. Ne3 {[%emt 0:00:30]} Nf5 {[%emt 0:00:09]} 20. O-O {[%emt 0:00:04]} Nxe3 {[%emt 0:00:25]} 21. Bxe3 {[%emt 0:00:00]} Qd7 {[%emt 0:00:01]} 22. d5 {[%emt 0:00:08]} Nc7 {[%emt 0:00:18]} 23. c4 {[%emt 0:00:15]} b5 {[%emt 0:00:11]} 24. e6 {[%emt 0:00:04]} Qd6 {[%emt 0:00:46]} 25. Bf4 {[%emt 0:00:01]} Qb6+ {[%emt 0:00:01]} 26. Kg2 {[%emt 0:00:04]} Rac8 {[%emt 0:00:06]} 27. Rac1 {[%emt 0:00:07] .} bxc4 {[%emt 0:00:01]} 28. Qxb6 {[%emt 0:00:01]} axb6 {[%emt 0:00:00]} 29. Rxc4 {[%emt 0:00:00]} Nxd5 {[%emt 0:00:00]} 30. Rxc8 {[%emt 0:00:02]} Rxc8 {[%emt 0:00:00]} 31. Bc1 {[%emt 0:00:03]} Kg8 {[%emt 0:00:01]} 32. Rd1 {[%emt 0:00:02]} Rc5 {[%emt 0:00:02]} 33. Kf3 {[%emt 0:00:05]} Be5 {[%emt 0:00:01]} 34. Ke4 {[%emt 0:00:01]} Bd6 {[%emt 0:00:02]} 35. Bh6 {[%emt 0:00:03]} Nf6+ {[%emt 0:00:02]} 36. Kf3 {[%emt 0:00:02]} Rf5+ {[%emt 0:00:01]} 37. Kg2 {[%emt 0:00:01]} Ng4 {[%emt 0:00:02]} 38. Bf4 {[%emt 0:00:01]} Bxf4 {[%emt 0:00:01]} 39. Rd8+ {[%emt 0:00:01]} Rf8 {[%emt 0:00:01]} 40. gxf4 {[%emt 0:00:00]} Rxd8 {[%emt 0:00:01]} 41. Kf3 {[%emt 0:00:01]} Nf6 {[%emt 0:00:01] Zaman (Lag: Av=0.53s, max=0.9s)} 0-1

[Event "Is Bankasi Online Satranc Turn 17-18 YAS"]
[Site "T#646243Mustafa Kemal"]
[Date "2020.05.22"]
[Round "3"]
[White "Atahanbulut70"]
[Black "Tarikemretay96"]
[Result "0-1"]
[WhiteElo "1620"]
[BlackElo "1620"]
[Annotator "NA RC"]
[PlyCount "72"]
[EventDate "2020.05.22"]
[EventType "swiss (blitz)"]
[TimeControl "180+2"]

1. e4 {[%emt 0:00:03]} c6 {[%emt 0:00:01]} 2. Nf3 {[%emt 0:00:08]} d5 {[%emt 0:00:01]} 3. d3 {[%emt 0:00:07]} dxe4 {[%emt 0:00:02]} 4. dxe4 {[%emt 0:00:02]} Qxd1+ {[%emt 0:00:00]} 5. Kxd1 {[%emt 0:00:01]} Bg4 {[%emt 0:00:01]} 6. h3 {[%emt 0:00:02]} Bxf3+ {[%emt 0:00:01]} 7. gxf3 {[%emt 0:00:00]} e5 {[%emt 0:00:02]} 8. Nc3 {[%emt 0:00:02]} Nf6 {[%emt 0:00:03]} 9. Be3 {[%emt 0:00:03]} Nbd7 {[%emt 0:00:04]} 10. Rg1 {[%emt 0:00:14]} b6 {[%emt 0:00:30]} 11. a3 {[%emt 0:00:05]} O-O-O {[%emt 0:00:06]} 12. f4 {[%emt 0:00:14]} g6 {[%emt 0:00:08]} 13. fxe5 {[%emt 0:00:08]} Nxe5+ {[%emt 0:00:01]} 14. Kc1 {[%emt 0:00:13]} Nf3 {[%emt 0:00:16]} 15. Rg3 {[%emt 0:00:16]} Nd4 {[%emt 0:00:09]} 16. e5 {[%emt 0:00:11]} Ne8 {[%emt 0:00:20]} 17. Rg4 {[%emt 0:00:10]} Nf5 {[%emt 0:00:06]} 18. a4 {[%emt 0:00:15]} h5 {[%emt 0:00:04]} 19. Rc4 {[%emt 0:00:12]} c5 {[%emt 0:00:13]} 20. Ra3 {[%emt 0:00:06]} Nxe3 {[%emt 0:00:03]} 21. Bg2 {[%emt 0:00:11]} Nxc4 {[%emt 0:00:04]} 22. Bf1 {[%emt 0:00:00]} Nxa3 {[%emt 0:00:02]} 23. bxa3 {[%emt 0:00:03]} Bg7 {[%emt 0:00:05]} 24. Ba6+ {[%emt 0:00:10]} Kc7 {[%emt 0:00:02]} 25. Nb5+ {[%emt 0:00:03]} Kd7 {[%emt 0:00:06]} 26. Nc3 {[%emt 0:00:12]} Bxe5 {[%emt 0:00:03]} 27. Bb5+ {[%emt 0:00:02]} Kd6 {[%emt 0:00:03]} 28. Ne4+ {[%emt 0:00:04]} Kd5 {[%emt 0:00:08]} 29. Nd2 {[%emt 0:00:07]} Bf4 {[%emt 0:00:02]} 30. Bc4+ {[%emt 0:00:13]} Kd4 {[%emt 0:00:05]} 31. Kd1 {[%emt 0:00:10]} Bxd2 {[%emt 0:00:02]} 32. Kxd2 {[%emt 0:00:01]} Kxc4+ {[%emt 0:00:01]} 33. Kc1 {[%emt 0:00:02]} Nd6 {[%emt 0:00:02]} 34. Kb2 {[%emt 0:00:05]} Ne4 {[%emt 0:00:01]} 35. a5 {[%emt 0:00:07]} Nxf2 {[%emt 0:00:01]} 36. axb6 {[%emt 0:00:08]} axb6 {[%emt 0:00:00] Zaman (Lag: Av=0.97s, max=1.4s)} 0-1

[Event "Is Bankasi Online Satranc Turn 17-18 YAS"]
[Site "T#646243Mustafa Kemal"]
[Date "2020.05.22"]
[Round "3"]
[White "Canberkgiray40"]
[Black "Servethakanalt20"]
[Result "1-0"]
[WhiteElo "1620"]
[BlackElo "1620"]
[Annotator "NA RC"]
[PlyCount "75"]
[EventDate "2020.05.22"]
[EventType "swiss (blitz)"]
[TimeControl "180+2"]

1. e4 {[%emt 0:00:03]} e6 {[%emt 0:00:01]} 2. d4 {[%emt 0:00:02]} d5 {[%emt 0:00:03]} 3. exd5 {[%emt 0:00:01]} exd5 {[%emt 0:00:03]} 4. Nf3 {[%emt 0:00:01]} Bd6 {[%emt 0:00:02]} 5. Bd3 {[%emt 0:00:01]} Ne7 {[%emt 0:00:01]} 6. O-O {[%emt 0:00:01]} Nbc6 {[%emt 0:00:01]} 7. Bg5 {[%emt 0:00:02]} f6 {[%emt 0:00:02]} 8. Bh4 {[%emt 0:00:01]} Bg4 {[%emt 0:00:02]} 9. c3 {[%emt 0:00:02]} Qd7 {[%emt 0:00:02]} 10. Nbd2 {[%emt 0:00:03]} O-O-O {[%emt 0:00:04]} 11. Bg3 {[%emt 0:00:04]} h6 {[%emt 0:00:03]} 12. Bxd6 {[%emt 0:00:02]} Qxd6 {[%emt 0:00:01]} 13. Qc2 {[%emt 0:00:02]} h5 {[%emt 0:00:02]} 14. h3 {[%emt 0:00:04]} Kb8 {[%emt 0:00:03]} 15. Nh4 {[%emt 0:00:24]} g5 {[%emt 0:00:06]} 16. Nf5 {[%emt 0:00:03]} Bxf5 {[%emt 0:00:13]} 17. Bxf5 {[%emt 0:00:02]} Nxf5 {[%emt 0:00:00]} 18. Qxf5 {[%emt 0:00:02]} g4 {[%emt 0:00:04]} 19. h4 {[%emt 0:00:14]} Ne7 {[%emt 0:00:09]} 20. Qd3 {[%emt 0:00:07]} f5 {[%emt 0:00:03]} 21. g3 {[%emt 0:00:05]} Ng6 {[%emt 0:00:05]} 22. Qxf5 {[%emt 0:00:19]} Rdf8 {[%emt 0:00:06]} 23. Qd3 {[%emt 0:00:02]} Rhg8 {[%emt 0:00:26]} 24. Kg2 {[%emt 0:00:11]} Qf6 {[%emt 0:00:13]} 25. Rae1 {[%emt 0:00:07]} Nxh4+ {[%emt 0:00:26]} 26. gxh4 {[%emt 0:00:08]} Qxh4 {[%emt 0:00:00]} 27. Qg3 {[%emt 0:00:02]} Qg5 {[%emt 0:00:06]} 28. Qe3 {[%emt 0:00:24]} Qf5 {[%emt 0:00:19]} 29. Qe5 {[%emt 0:00:12]} Qd3 {[%emt 0:00:31]} 30. Qe3 {[%emt 0:00:10]} Qg6 {[%emt 0:00:25]} 31. Rh1 {[%emt 0:00:10]} Rf3 {[%emt 0:00:10]} 32. Qe6 {[%emt 0:00:20]} Qxe6 {[%emt 0:00:09]} 33. Rxe6 {[%emt 0:00:03]} Rd3 {[%emt 0:00:00]} 34. Re2 {[%emt 0:00:04]} Rf8 {[%emt 0:00:04]} 35. Rxh5 {[%emt 0:00:05]} g3 {[%emt 0:00:02]} 36. fxg3 {[%emt 0:00:04]} b6 {[%emt 0:00:00]} 37. Rxd5 {[%emt 0:00:02]} c6 {[%emt 0:00:00]} 38. Rde5 {[%emt 0:00:02] Zaman (Lag: Av=1.00s, max=1.4s)} 1-0

[Event "Is Bankasi Online Satranc Turn 17-18 YAS"]
[Site "T#646243Mustafa Kemal"]
[Date "2020.05.22"]
[Round "3"]
[White "Denizozaydin42"]
[Black "Burakcanaksoz58"]
[Result "0-1"]
[WhiteElo "1620"]
[BlackElo "1620"]
[Annotator "NA RC"]
[PlyCount "90"]
[EventDate "2020.05.22"]
[EventType "swiss (blitz)"]
[TimeControl "180+2"]

1. Nf3 {[%emt 0:00:02]} c5 {[%emt 0:00:06]} 2. e3 {[%emt 0:00:04]} Nc6 {[%emt 0:00:06]} 3. d4 {[%emt 0:00:01]} e6 {[%emt 0:00:02]} 4. b3 {[%emt 0:00:02]} d5 {[%emt 0:00:02]} 5. Bb2 {[%emt 0:00:01]} Nf6 {[%emt 0:00:04]} 6. Nbd2 {[%emt 0:00:01]} Bd6 {[%emt 0:00:03]} 7. a3 {[%emt 0:00:01]} a5 {[%emt 0:00:09]} 8. Bd3 {[%emt 0:00:12]} O-O {[%emt 0:00:02]} 9. O-O {[%emt 0:00:01]} Re8 {[%emt 0:00:10]} 10. Ne5 {[%emt 0:00:06]} Qc7 {[%emt 0:00:24]} 11. f4 {[%emt 0:00:08]} b6 {[%emt 0:00:46]} 12. Qe2 {[%emt 0:00:37]} Bb7 {[%emt 0:00:37]} 13. g4 {[%emt 0:00:11]} cxd4 {[%emt 0:00:28]} 14. exd4 {[%emt 0:00:05]} Ne7 {[%emt 0:00:01]} 15. g5 {[%emt 0:00:10]} Nd7 {[%emt 0:00:06]} 16. Ndf3 {[%emt 0:00:07]} Nf5 {[%emt 0:00:13]} 17. Nxd7 {[%emt 0:00:11]} Qxd7 {[%emt 0:00:01]} 18. Ne5 {[%emt 0:00:00]} Qc7 {[%emt 0:00:01]} 19. Qf3 {[%emt 0:00:32]} Ba6 {[%emt 0:00:02]} 20. Bxa6 {[%emt 0:00:04]} Rxa6 {[%emt 0:00:00]} 21. Rac1 {[%emt 0:00:07]} b5 {[%emt 0:00:02]} 22. Qd3 {[%emt 0:00:13]} Qe7 {[%emt 0:00:02]} 23. c4 {[%emt 0:00:09]} bxc4 {[%emt 0:00:04]} 24. bxc4 {[%emt 0:00:03]} dxc4 {[%emt 0:00:01]} 25. Nxc4 {[%emt 0:00:03]} Rc6 {[%emt 0:00:03]} 26. Nxa5 {[%emt 0:00:05]} Rxc1 {[%emt 0:00:02]} 27. Bxc1 {[%emt 0:00:04]} Ra8 {[%emt 0:00:02]} 28. Nc4 {[%emt 0:00:06]} Qa7 {[%emt 0:00:07]} 29. Nxd6 {[%emt 0:00:03]} Nxd4 {[%emt 0:00:01]} 30. Be3 {[%emt 0:00:06]} Qxa3 {[%emt 0:00:05]} 31. Qxd4 {[%emt 0:00:05]} Rd8 {[%emt 0:00:02]} 32. Nb5 {[%emt 0:00:07]} Qf8 {[%emt 0:00:02]} 33. Qb2 {[%emt 0:00:03]} Qe7 {[%emt 0:00:01]} 34. Rc1 {[%emt 0:00:03]} Rb8 {[%emt 0:00:01]} 35. Bc5 {[%emt 0:00:02]} Qd7 {[%emt 0:00:02]} 36. Qb4 {[%emt 0:00:03]} h6 {[%emt 0:00:02]} 37. Bd6 {[%emt 0:00:01]} Rxb5 {[%emt 0:00:01]} 38. Qxb5 {[%emt 0:00:02]} Qxb5 {[%emt 0:00:01]} 39. Rc8+ {[%emt 0:00:02]} Kh7 {[%emt 0:00:01]} 40. Rc7 {[%emt 0:00:02]} Qb1+ {[%emt 0:00:04]} 41. Kg2 {[%emt 0:00:01]} Qb2+ {[%emt 0:00:02]} 42. Kg3 {[%emt 0:00:01]} hxg5 {[%emt 0:00:01]} 43. fxg5 {[%emt 0:00:03]} Qb3+ {[%emt 0:00:03]} 44. Kg2 {[%emt 0:00:02]} Qd5+ {[%emt 0:00:02]} 45. Kg3 {[%emt 0:00:03]} Qxd6+ {[%emt 0:00:00] Denizozaydin42 resigns (Lag: Av=0.71s, max=1.1s)} 0-1

[Event "Is Bankasi Online Satranc Turn 17-18 YAS"]
[Site "T#646243Mustafa Kemal"]
[Date "2020.05.22"]
[Round "3"]
[White "Huseyinazizcak12"]
[Black "Ahmetemreoztur80"]
[Result "0-1"]
[WhiteElo "1620"]
[BlackElo "1620"]
[Annotator "NA RC"]
[PlyCount "56"]
[EventDate "2020.05.22"]
[EventType "swiss (blitz)"]
[TimeControl "180+2"]

1. e4 {[%emt 0:00:02]} c5 {[%emt 0:00:07]} 2. Nf3 {[%emt 0:00:02]} Nc6 {[%emt 0:00:01]} 3. d4 {[%emt 0:00:01]} cxd4 {[%emt 0:00:00]} 4. Nxd4 {[%emt 0:00:02]} Nf6 {[%emt 0:00:01]} 5. Nxc6 {[%emt 0:00:02]} bxc6 {[%emt 0:00:00]} 6. Qf3 {[%emt 0:00:06]} e5 {[%emt 0:00:03]} 7. Bd3 {[%emt 0:00:02]} Be7 {[%emt 0:00:01]} 8. O-O {[%emt 0:00:02]} O-O {[%emt 0:00:01]} 9. Nd2 {[%emt 0:00:07]} Bb7 {[%emt 0:00:01]} 10. Nc4 {[%emt 0:00:05]} Qc7 {[%emt 0:00:06]} 11. Ne3 {[%emt 0:00:18]} d5 {[%emt 0:00:07]} 12. Nf5 {[%emt 0:00:22]} dxe4 {[%emt 0:00:19]} 13. Nxe7+ {[%emt 0:00:06]} Qxe7 {[%emt 0:00:04]} 14. Bxe4 {[%emt 0:00:03]} Nxe4 {[%emt 0:00:03]} 15. Qxe4 {[%emt 0:00:02]} c5 {[%emt 0:00:01]} 16. Qg4 {[%emt 0:00:12]} Rad8 {[%emt 0:00:10]} 17. Bh6 {[%emt 0:00:04]} Qf6 {[%emt 0:00:06]} 18. Bg5 {[%emt 0:00:04]} Qg6 {[%emt 0:00:01]} 19. h3 {[%emt 0:00:07]} Rd4 {[%emt 0:00:14]} 20. Qg3 {[%emt 0:00:20]} f6 {[%emt 0:00:36]} 21. Be3 {[%emt 0:00:08]} Qxg3 {[%emt 0:00:03]} 22. fxg3 {[%emt 0:00:09]} Rc4 {[%emt 0:00:09]} 23. c3 {[%emt 0:00:14]} Rd8 {[%emt 0:00:04]} 24. Rac1 {[%emt 0:00:11]} Ra4 {[%emt 0:00:21]} 25. Bxc5 {[%emt 0:00:12]} Rxa2 {[%emt 0:00:01]} 26. Ba3 {[%emt 0:00:07]} Rd2 {[%emt 0:00:11]} 27. Rf2 {[%emt 0:00:10]} Rd3 {[%emt 0:00:07]} 28. Kf1 {[%emt 0:00:26]} Rxg3 {[%emt 0:00:05] Zaman (Lag: Av=0.69s, max=1.3s)} 0-1

[Event "Is Bankasi Online Satranc Turn 17-18 YAS"]
[Site "T#646243Mustafa Kemal"]
[Date "2020.05.22"]
[Round "3"]
[White "Kayrakamer68"]
[Black "Ahmetburakgurs66"]
[Result "1-0"]
[WhiteElo "1620"]
[BlackElo "1620"]
[Annotator "NA RC"]
[PlyCount "135"]
[EventDate "2020.05.22"]
[EventType "swiss (blitz)"]
[TimeControl "180+2"]

1. e4 {[%emt 0:00:03]} c5 {[%emt 0:00:03]} 2. Nf3 {[%emt 0:00:02]} e6 {[%emt 0:00:02]} 3. d4 {[%emt 0:00:02]} cxd4 {[%emt 0:00:00]} 4. Nxd4 {[%emt 0:00:00]} Bc5 {[%emt 0:00:01]} 5. Nb3 {[%emt 0:00:04]} Bb6 {[%emt 0:00:01]} 6. Nc3 {[%emt 0:00:03]} Ne7 {[%emt 0:00:01]} 7. Bd3 {[%emt 0:00:04]} O-O {[%emt 0:00:01]} 8. Qe2 {[%emt 0:00:02]} Nbc6 {[%emt 0:00:01]} 9. Be3 {[%emt 0:00:01]} Bxe3 {[%emt 0:00:04]} 10. Qxe3 {[%emt 0:00:00]} d5 {[%emt 0:00:02]} 11. exd5 {[%emt 0:00:01]} Nxd5 {[%emt 0:00:01]} 12. Nxd5 {[%emt 0:00:01]} exd5 {[%emt 0:00:05]} 13. O-O {[%emt 0:00:01]} Re8 {[%emt 0:00:03]} 14. Qg3 {[%emt 0:00:01]} Be6 {[%emt 0:00:06]} 15. a3 {[%emt 0:00:02]} Qf6 {[%emt 0:00:02]} 16. c3 {[%emt 0:00:06]} Ne5 {[%emt 0:00:04]} 17. Be2 {[%emt 0:00:05]} Ng6 {[%emt 0:00:03]} 18. Nd4 {[%emt 0:00:04]} Nf4 {[%emt 0:00:05]} 19. Bf3 {[%emt 0:00:05]} h5 {[%emt 0:00:15]} 20. h4 {[%emt 0:00:06]} Bd7 {[%emt 0:00:21]} 21. Rfe1 {[%emt 0:00:05]} Nd3 {[%emt 0:00:02]} 22. Rxe8+ {[%emt 0:00:03]} Rxe8 {[%emt 0:00:01]} 23. Bxd5 {[%emt 0:00:02]} Nxb2 {[%emt 0:00:09]} 24. Rb1 {[%emt 0:00:02]} Nd3 {[%emt 0:00:04]} 25. Qxd3 {[%emt 0:00:03]} Bg4 {[%emt 0:00:11]} 26. Qg3 {[%emt 0:00:10]} b6 {[%emt 0:00:03]} 27. Bf3 {[%emt 0:00:03]} Qg6 {[%emt 0:00:06]} 28. Rd1 {[%emt 0:00:06]} Rc8 {[%emt 0:00:11]} 29. Bxg4 {[%emt 0:00:03]} hxg4 {[%emt 0:00:01]} 30. Qd3 {[%emt 0:00:03]} Qf6 {[%emt 0:00:07]} 31. Ne2 {[%emt 0:00:07]} Qxh4 {[%emt 0:00:02]} 32. Qd7 {[%emt 0:00:04]} Rf8 {[%emt 0:00:08]} 33. Rd4 {[%emt 0:00:03]} Qf6 {[%emt 0:00:08]} 34. Qxg4 {[%emt 0:00:02]} Qe5 {[%emt 0:00:05]} 35. Qe4 {[%emt 0:00:02]} Qc5 {[%emt 0:00:03]} 36. a4 {[%emt 0:00:03]} g6 {[%emt 0:00:05]} 37. Qd3 {[%emt 0:00:03]} Re8 {[%emt 0:00:07]} 38. Rd8 {[%emt 0:00:03]} Qe5 {[%emt 0:00:01]} 39. Rc8 {[%emt 0:00:01]} Rxc8 {[%emt 0:00:04]} 40. Nd4 {[%emt 0:00:10]} Qe1+ {[%emt 0:00:06]} 41. Kh2 {[%emt 0:00:02]} Rc5 {[%emt 0:00:04]} 42. Nf3 {[%emt 0:00:06]} Qxf2 {[%emt 0:00:07]} 43. Qd8+ {[%emt 0:00:04]} Kg7 {[%emt 0:00:02]} 44. Kh3 {[%emt 0:00:14]} Rh5+ {[%emt 0:00:03]} 45. Kg4 {[%emt 0:00:01]} Qxg2+ {[%emt 0:00:02]} 46. Kf4 {[%emt 0:00:00]} Qc2 {[%emt 0:00:14]} 47. Qd4+ {[%emt 0:00:04]} Kh7 {[%emt 0:00:03]} 48. Ng5+ {[%emt 0:00:03]} Rxg5 {[%emt 0:00:16]} 49. Kxg5 {[%emt 0:00:00]} Qf5+ {[%emt 0:00:03]} 50. Kh4 {[%emt 0:00:01]} g5+ {[%emt 0:00:01]} 51. Kh5 {[%emt 0:00:07]} Qg6+ {[%emt 0:00:03]} 52. Kg4 {[%emt 0:00:01]} f5+ {[%emt 0:00:01]} 53. Kg3 {[%emt 0:00:02]} f4+ {[%emt 0:00:01]} 54. Kg4 {[%emt 0:00:06]} Qg7 {[%emt 0:00:03]} 55. Qe4+ {[%emt 0:00:04]} Kh6 {[%emt 0:00:12]} 56. Qc6+ {[%emt 0:00:01]} Qg6 {[%emt 0:00:03]} 57. Qh1+ {[%emt 0:00:02]} Kg7 {[%emt 0:00:02]} 58. Qb7+ {[%emt 0:00:02]} Qf7 {[%emt 0:00:01]} 59. Qe4 {[%emt 0:00:12]} Qf6 {[%emt 0:00:07]} 60. Qb7+ {[%emt 0:00:08]} Kh6 {[%emt 0:00:05]} 61. Qh1+ {[%emt 0:00:02]} Kg6 {[%emt 0:00:02]} 62. Qe4+ {[%emt 0:00:02]} Kf7 {[%emt 0:00:02]} 63. Qh7+ {[%emt 0:00:12]} Ke8 {[%emt 0:00:07]} 64. Qxa7 {[%emt 0:00:11]} Qxc3 {[%emt 0:00:13]} 65. Qb8+ {[%emt 0:00:11]} Ke7 {[%emt 0:00:02]} 66. Qb7+ {[%emt 0:00:02]} Ke8 {[%emt 0:00:01]} 67. Qxb6 {[%emt 0:00:15]} Qg3+ {[%emt 0:00:01]} 68. Kh5 {[%emt 0:00:02] Zaman (Lag: Av=0.35s, max=0.7s)} 1-0

[Event "Is Bankasi Online Satranc Turn 17-18 YAS"]
[Site "T#646243Mustafa Kemal"]
[Date "2020.05.22"]
[Round "3"]
[White "Kutayozkurt40"]
[Black "Furkancan12"]
[Result "0-1"]
[WhiteElo "1620"]
[BlackElo "1620"]
[Annotator "NA RC"]
[PlyCount "48"]
[EventDate "2020.05.22"]
[EventType "swiss (blitz)"]
[TimeControl "180+2"]

1. e4 {[%emt 0:00:02]} Nf6 {[%emt 0:00:02]} 2. Nc3 {[%emt 0:00:02]} e5 {[%emt 0:00:02]} 3. Nf3 {[%emt 0:00:02]} Bb4 {[%emt 0:00:01]} 4. Nxe5 {[%emt 0:00:07]} O-O {[%emt 0:00:01]} 5. Be2 {[%emt 0:00:03]} Re8 {[%emt 0:00:10]} 6. Nd3 {[%emt 0:00:02]} Bxc3 {[%emt 0:00:01]} 7. dxc3 {[%emt 0:00:00]} Nxe4 {[%emt 0:00:01]} 8. O-O {[%emt 0:00:01]} d5 {[%emt 0:00:01]} 9. f3 {[%emt 0:00:04]} Nd6 {[%emt 0:00:10]} 10. Bf4 {[%emt 0:00:05]} c6 {[%emt 0:00:09]} 11. Re1 {[%emt 0:00:02]} Bf5 {[%emt 0:00:04]} 12. Bf1 {[%emt 0:00:04]} Nc4 {[%emt 0:00:03]} 13. b3 {[%emt 0:00:10]} Nb6 {[%emt 0:00:08]} 14. Qd2 {[%emt 0:00:11]} N8d7 {[%emt 0:00:02]} 15. Rxe8+ {[%emt 0:00:02]} Qxe8 {[%emt 0:00:01]} 16. Re1 {[%emt 0:00:00]} Qd8 {[%emt 0:00:01]} 17. Ne5 {[%emt 0:00:10]} Nxe5 {[%emt 0:00:04]} 18. Bxe5 {[%emt 0:00:00]} Nd7 {[%emt 0:00:03]} 19. Bd3 {[%emt 0:00:21]} Bxd3 {[%emt 0:00:39]} 20. cxd3 {[%emt 0:00:06]} Nxe5 {[%emt 0:00:21]} 21. Rxe5 {[%emt 0:00:00]} f6 {[%emt 0:00:01]} 22. Re6 {[%emt 0:00:14]} Qd7 {[%emt 0:00:11]} 23. Qe2 {[%emt 0:00:01]} Kf7 {[%emt 0:00:01]} 24. d4 {[%emt 0:00:03]} Qxe6 {[%emt 0:00:02] Kutayozkurt40 terk eder (Lag: Av=0.46s, max=0.8s)} 0-1

[Event "Is Bankasi Online Satranc Turn 17-18 YAS"]
[Site "T#646243Mustafa Kemal"]
[Date "2020.05.22"]
[Round "3"]
[White "Mahmutemrekord40"]
[Black "Ozgurkazak62"]
[Result "0-1"]
[WhiteElo "1620"]
[BlackElo "1620"]
[Annotator "NA RC"]
[PlyCount "58"]
[EventDate "2020.05.22"]
[EventType "swiss (blitz)"]
[TimeControl "180+2"]

1. e4 {[%emt 0:00:05]} e5 {[%emt 0:00:02]} 2. Nf3 {[%emt 0:00:01]} Nc6 {[%emt 0:00:02]} 3. Nc3 {[%emt 0:00:02]} Nf6 {[%emt 0:00:03]} 4. Qe2 {[%emt 0:00:06]} Bb4 {[%emt 0:00:11]} 5. a3 {[%emt 0:00:02]} Bxc3 {[%emt 0:00:03]} 6. dxc3 {[%emt 0:00:05]} h6 {[%emt 0:00:01]} 7. Nh4 {[%emt 0:00:07]} d6 {[%emt 0:00:05]} 8. Be3 {[%emt 0:00:37]} Ng4 {[%emt 0:00:03]} 9. Nf3 {[%emt 0:00:14]} Nxe3 {[%emt 0:00:09]} 10. Qxe3 {[%emt 0:00:04]} f5 {[%emt 0:00:07]} 11. exf5 {[%emt 0:00:07]} Bxf5 {[%emt 0:00:03]} 12. Bb5 {[%emt 0:00:13]} Qd7 {[%emt 0:00:16]} 13. Bxc6 {[%emt 0:00:03]} Qxc6 {[%emt 0:00:02]} 14. Rd1 {[%emt 0:00:08]} O-O-O {[%emt 0:00:02]} 15. O-O {[%emt 0:00:02]} Bxc2 {[%emt 0:00:03]} 16. Rd2 {[%emt 0:00:10]} Be4 {[%emt 0:00:06]} 17. Nh4 {[%emt 0:00:14]} Rhf8 {[%emt 0:00:06]} 18. Re1 {[%emt 0:00:15]} Bh7 {[%emt 0:00:10]} 19. Qh3+ {[%emt 0:00:04]} Kb8 {[%emt 0:00:05]} 20. g3 {[%emt 0:00:20]} g5 {[%emt 0:00:12]} 21. Ng2 {[%emt 0:00:14]} Rf6 {[%emt 0:00:07]} 22. f4 {[%emt 0:00:04]} Bf5 {[%emt 0:00:03]} 23. fxg5 {[%emt 0:00:02]} Bxh3 {[%emt 0:00:04]} 24. gxf6 {[%emt 0:00:07]} Rf8 {[%emt 0:00:11]} 25. Rf1 {[%emt 0:00:04]} d5 {[%emt 0:00:02]} 26. b3 {[%emt 0:00:08]} d4 {[%emt 0:00:02]} 27. cxd4 {[%emt 0:00:02]} exd4 {[%emt 0:00:02]} 28. Rff2 {[%emt 0:00:10]} Rxf6 {[%emt 0:00:05]} 29. Rxf6 {[%emt 0:00:05]} Qxf6 {[%emt 0:00:04] Zaman (Lag: Av=0.68s, max=1.4s)} 0-1

[Event "Is Bankasi Online Satranc Turn 17-18 YAS"]
[Site "T#646243Mustafa Kemal"]
[Date "2020.05.22"]
[Round "3"]
[White "Merttosun42"]
[Black "Mehmetkozak72"]
[Result "1-0"]
[WhiteElo "1620"]
[BlackElo "1620"]
[Annotator "NA RC"]
[PlyCount "45"]
[EventDate "2020.05.22"]
[EventType "swiss (blitz)"]
[TimeControl "180+2"]

1. e4 {[%emt 0:00:03]} c5 {[%emt 0:00:06]} 2. b3 {[%emt 0:00:01]} d6 {[%emt 0:00:01]} 3. Bb2 {[%emt 0:00:01]} Nc6 {[%emt 0:00:00]} 4. d3 {[%emt 0:00:03]} e6 {[%emt 0:00:04]} 5. Nd2 {[%emt 0:00:01]} d5 {[%emt 0:00:01]} 6. Be2 {[%emt 0:00:11]} d4 {[%emt 0:00:05]} 7. c3 {[%emt 0:00:04]} e5 {[%emt 0:00:02]} 8. f4 {[%emt 0:00:06]} Nf6 {[%emt 0:00:06]} 9. Ngf3 {[%emt 0:00:02]} exf4 {[%emt 0:00:02]} 10. O-O {[%emt 0:00:02]} Bd6 {[%emt 0:00:05]} 11. Nc4 {[%emt 0:00:09]} Bc7 {[%emt 0:00:03]} 12. e5 {[%emt 0:00:09]} Nd5 {[%emt 0:00:13]} 13. cxd4 {[%emt 0:00:09]} b5 {[%emt 0:00:05]} 14. Nd6+ {[%emt 0:00:04]} Bxd6 {[%emt 0:00:02]} 15. exd6 {[%emt 0:00:02]} Qxd6 {[%emt 0:00:05]} 16. dxc5 {[%emt 0:00:01]} Qxc5+ {[%emt 0:00:01]} 17. d4 {[%emt 0:00:10]} Qd6 {[%emt 0:00:07]} 18. Bxb5 {[%emt 0:00:10]} O-O {[%emt 0:00:09]} 19. Re1 {[%emt 0:00:29]} Bf5 {[%emt 0:00:09]} 20. Rc1 {[%emt 0:00:07]} Ncb4 {[%emt 0:00:19]} 21. Ba3 {[%emt 0:00:13]} a6 {[%emt 0:00:10]} 22. Rc6 {[%emt 0:00:14]} Qg6 {[%emt 0:00:18]} 23. Rxg6 {[%emt 0:00:04] Mehmetkozak72 terk eder (Lag: Av=0.53s, max=0.8s)} 1-0